Cogmind - Beta 13 @@@ ROGUE MODE // 2024.07.05 @ 09:54:09 Player: AntiGoose Result: Destroyed by 4Q-CUF(R) with Subdweller Laser Performance ------------- Evolutions (0) 0 Regions Visited (2) 400 Robots Destroyed (23) 115 Value Destroyed (404) 404 Prototype IDs (12) 240 Alien Tech Used (0) 0 Bonus (-50) -50 TOTAL SCORE: 1109 Bonus ------- Friendly Fire -50 Cogmind --------- Core Integrity 0/250 Matter 268/300 Energy 200/200 System Corruption 0% Temperature Cool (6) Movement Rolling (130) Ox2 Location -10/Subcaves Parts ------- > --- POWER (1) -------- Subdweller Power Source > --- PROPULSION (2) --- Subdweller Monowheel > --- UTILITY (2) ------ High-capacity Storage Unit Makeshift Light Armor Plating > --- WEAPON (2) ------- Heavy Battle Rifle Battle Cannon > --- INVENTORY (20) --- Flightbrick Disposable Heat Sink Medium Matter Pod (100) Subdweller Optics Makeshift Light Armor Plating Makeshift System Restoration Module Subdweller Beam Cannon Subdweller Machine Gun Makeshift Sword Peak State ------------ > --- POWER ------------ Ion Engine > --- PROPULSION ------- Spiked Treads > --- UTILITY ---------- High-capacity Storage Unit Makeshift Light Armor Plating > --- WEAPON ----------- Heavy Battle Rifle Makeshift Sword > --- INVENTORY -------- Flightbrick Disposable Heat Sink Medium Matter Pod Subdweller Optics Makeshift System Restoration Module Subdweller Laser Subdweller Beam Cannon Battle Cannon [Rating: 21] Favorites ----------- Power Ion Engine Engine Ion Engine Propulsion Spiked Treads Treads Spiked Treads Wheel Subdweller Monowheel Utility High-capacity Storage Unit Device Tractor Beam Storage High-capacity Storage Unit Protection Makeshift Light Armor Plating Weapon Subdweller Beam Cannon Energy Gun Subdweller Laser Energy Cannon Subdweller Beam Cannon Ballistic Gun Heavy Battle Rifle Ballistic Cannon Battle Cannon Special Weapon Mining Laser Slashing Weapon Makeshift Sword Build | -11 -10 -10 ------- Run | Yrd Mat Sub Slots Evolved . | . . . Power . | . . . Propulsion . | . . . Utility . | . . . Weapon . | . . . Parts Attached 37 | 6 11 20 Power 8 | 1 1 6 Engine 8 | 1 1 6 Core . | . . . Reactor . | . . . Propulsion 8 | 2 3 3 Treads 6 | 2 3 1 Leg . | . . . Wheel 2 | . . 2 Hover . | . . . Flight . | . . . Utility 4 | 1 2 1 Device 1 | . 1 . Storage 2 | 1 1 . Processor . | . . . Hackware . | . . . Protection 1 | . . 1 Artifact . | . . . Weapon 17 | 2 5 10 Energy Gun 2 | . 1 1 Energy Cannon 3 | . 1 2 Ballistic Gun 7 | 2 3 2 Ballistic Cannon 2 | . . 2 Launcher . | . . . Special Weapon 1 | . . 1 Impact Weapon . | . . . Slashing Weapon 2 | . . 2 Piercing Weapon . | . . . Special Melee Weapon . | . . . Unidentified Prototypes . | . . . Parts Lost 9 | . 2 7 Power 2 | . 1 1 Propulsion 3 | . . 3 Utility 1 | . . 1 Weapon 3 | . 1 2 Highest Loss Streak 5 | . 2 5 To Critical Strikes 1 | . . 1 Average Slot Usage (%) 81 | . 89 80 Engine 10 | . 12 9 Treads 15 | . 27 13 Device 1 | . 6 . Storage 14 | . 14 14 Protection 11 | . . 13 Energy Gun 2 | . 10 1 Energy Cannon 12 | . 3 13 Ballistic Gun 9 | . 12 8 Slashing Weapon 2 | . . 2 Naked Turns . | . . . Heaviest Build 61 | 14 51 61 Greatest Support 40 | 40 40 40 Greatest Overweight (x) 19 | . 1 19 Average Overweight (x) 2 | . . 2 Largest Inventory Capacity 20 | 8 20 20 Average Capacity 17 | 7 16 20 Most Carried 13 | 3 6 13 Average Carried 6 | . 3 8 Final Capacity 20 | 8 20 20 Final Carried 12 | 1 3 12 Class Distribution -------------------- 98% | Mutant Dominant Class ---------------- Mutant | -10/Materials Mutant | -10/Subcaves Resources | -11 -10 -10 ----------- Run | Yrd Mat Sub Matter Collected 895 | 205 284 406 Remotely 185 | . 54 131 Salvage Created 593 | . 284 309 Parts 47 | . 26 21 Haulers Intercepted . | . . . Recyclers Shooed 3 | . 3 . Parts Field Recycled . | . . . Retrieved Matter . | . . . Parts Self-Destructed 17 | . . 17 Prevented . | . . . Kills | -11 -10 -10 ------- Run | Yrd Mat Sub Combat Hostiles Destroyed 17 | . 9 8 Guns 10 | . 7 3 Cannons 7 | . 2 5 Classes Destroyed 5 | . 3 2 Recycler 2 | . 2 . Turret 2 | . . 2 Watcher 2 | . 2 . Swarmer 13 | . 9 4 Subdweller 4 | . . 4 Best Kill Streak 6 | . 5 6 Combat Bots Only 4 | . 3 4 Max Kills in Single Turn 2 | . 2 1 Gunslinging 1 | . 1 . Exploded . | . . . Melee . | . . . Uniques/NPCs Destroyed . | . . . Combat | -11 -10 -10 -------- Run | Yrd Mat Sub Hostile Shots Fired 172 | . 68 104 Missed 44 | . 10 34 Damage Taken 1605 | . 493 1112 Core 251 | . 52 199 Absorbed by Shields . | . . . Core Remaining (%) 100 | 100 . . Volleys Fired 84 | . 43 41 Largest 2 | . 2 2 Hottest 160 | . 100 160 Shots Fired 157 | . 83 74 Gun 95 | . 70 25 Cannon 57 | . 13 44 Launcher . | . . . Special 5 | . . 5 Kinetic 84 | . 50 34 Thermal 53 | . 13 40 Explosive . | . . . Electromagnetic 20 | . 20 . Robot Hit Streak 7 | . 6 7 Robot Miss Streak 5 | . 5 2 Penetration Max . | . . . Secondary Targets 3 | . 3 . Max Gunslinging Chain 1 | . 1 . Shots Hit Robots 79 | . 44 35 Core Hits 29 | . 16 13 Critical Kills . | . . . Critical Parts Destroyed . | . . . Critical Strikes 1 | . 1 . Corrupt 1 | . 1 . Melee Attacks 22 | . . 22 Impact . | . . . Slashing 22 | . . 22 Piercing . | . . . Sneak Attacks . | . . . Combat Hostiles . | . . . Follow-up Attacks . | . . . Damage Inflicted 1507 | . 686 821 Guns 739 | . 494 245 Cannons 651 | . 123 528 Explosions 69 | . 69 . Melee . | . . . Ramming . | . . . Kinetic 665 | . 295 370 Thermal 643 | . 192 451 Explosive . | . . . Electromagnetic 199 | . 199 . Impact . | . . . Slashing . | . . . Piercing . | . . . Highest Corruption . | . . . Average Corruption . | . . . Corruption Purged . | . . . Corruption Blocked . | . . . Overload Shots . | . . . Overflow Damage 8 | . 8 . Projectiles . | . . . Explosions 8 | . 8 . Melee . | . . . Knockbacks 1 | . . 1 Impact . | . . . Kinetic 1 | . . 1 Secondary . | . . . Self-Inflicted Damage 40 | . 40 . Shots 1 | . 1 . Rammed . | . . . Targets Rammed . | . . . Kicked . | . . . Crushed . | . . . Highest Temperature 234 | . 140 234 Average Temperature 37 | . 72 20 Received Heat Transfer 528 | . . 528 Siege Activations . | . . . Robots Corrupted . | . . . Combat Hostiles . | . . . Parts Fried . | . . . Impact Corruptions . | . . . Robots Melted . | . . . Combat Hostiles . | . . . Parts Melted 5 | . 1 4 Heat Transferred 1076 | . 359 717 Parts Sabotaged . | . . . Parts Stolen . | . . . Parts Stripped . | . . . Power Chain Reactions 1 | . 1 . Alert | -11 -10 -10 ------- Run | Yrd Mat Sub Peak Influence 139 | . 139 . Initial . | . . . Average 33 | . 88 . Maximum Alert Level . | . . . Low Security (%) 100 | 100 100 . Level 1 . | . . . Level 2 . | . . . Level 3 . | . . . Level 4 . | . . . Level 5 . | . . . High Security . | . . . Max Security . | . . . Squads Dispatched . | . . . Investigation . | . . . Extermination . | . . . Reinforcement . | . . . Assault . | . . . Garrison . | . . . Intercept . | . . . Searches Triggered . | . . . Construction Impeded . | . . . Haulers Reinforced . | . . . Active Scanning Responses . | . . . Cargo Convoy Interrupts . | . . . Stealth | -11 -10 -10 --------- Run | Yrd Mat Sub Distress Signals 2 | . 2 . Communications Jammed . | . . . Distress Signals . | . . . Times Spotted 59 | . 17 42 Peak Tracking Total 6 | . 4 6 Tactical Retreats 5 | . 1 4 Traps | -11 -10 -10 ------- Run | Yrd Mat Sub Traps Triggered 5 | . 2 3 Indirectly . | . . . Trap Hack Attempts . | . . . Triggered . | . . . Disarmed . | . . . Reprogrammed 1 | . 1 . Reused . | . . . Traps Extracted . | . . . Installed . | . . . Triggered . | . . . Machines | -11 -10 -10 ---------- Run | Yrd Mat Sub Machines Disabled 4 | . 1 3 Max in Single Turn 1 | . 1 1 Machines Repaired . | . . . Machines Dismantled . | . . . Machines Sabotaged . | . . . Overloaded Fab Kills . | . . . Hacking | -11 -10 -10 --------- Run | Yrd Mat Sub Machines Accessed 5 | . 4 1 Terminals 3 | . 3 . Fabricators . | . . . Repair Stations . | . . . Recycling Units 1 | . 1 . Scanalyzers . | . . . Garrison Access . | . . . Total Hacks 19 | . 10 9 Successful 15 | . 6 9 Failed 4 | . 4 . Catastrophic . | . . . Database Lockouts . | . . . Manual . | . . . Terminals 8 | . 8 . Fabricators . | . . . Repair Stations . | . . . Recycling Units 2 | . 2 . Scanalyzers . | . . . Garrison Access . | . . . Terminal Hacks 14 | . 5 9 Record 10 | . 2 8 Prototype ID Bank 1 | . 1 . Branch Access Points 1 | . 1 . Reprogram Traps 1 | . 1 . Derelict Proto ID Bank 1 | . . 1 Fabricator Hacks . | . . . Repair Station Hacks . | . . . Recycling Unit Hacks 1 | . 1 . Report Inventory 1 | . 1 . Scanalyzer . | . . . Garrison Access Hacks . | . . . Unauthorized Hacks . | . . . Terminals . | . . . Fabricators . | . . . Repair Stations . | . . . Recycling Units . | . . . Scanalyzers . | . . . Garrison Access . | . . . Data Cores Recovered . | . . . Used . | . . . Hacking Detections 4 | . 4 . Full Trace Events . | . . . Feedback Events . | . . . Feedback Blocked . | . . . Robot Schematics Acquired . | . . . Robots Built . | . . . Authchips . | . . . Time . | . . . Total Robot Build Rating . | . . . Part Schematics Acquired . | . . . Parts Built . | . . . Authchips . | . . . Time . | . . . Total Part Build Rating . | . . . Parts Repaired . | . . . Time . | . . . Parts Recycled . | . . . Recycled Matter . | . . . Retrieved Matter . | . . . Retrieved Components . | . . . Parts Scanalyzed . | . . . Part Schematics Acquired . | . . . Parts Damaged . | . . . Bothacking | -11 -10 -10 ------------ Run | Yrd Mat Sub Used RIF Installer . | . . . Robots Hacked . | . . . Non-combat . | . . . Combat . | . . . Robot Hacks Applied . | . . . Relay Couplers Released . | . . . Fabnet Peak Effective % . | . . . Robots Rewired . | . . . Allies Hacked . | . . . Hacks Repelled . | . . . Allies | -11 -10 -10 -------- Run | Yrd Mat Sub Total Allies . | . . . Largest Group . | . . . Highest-Rated Group . | . . . Highest-Rated Ally . | . . . Total Orders . | . . . Ally Attacks . | . . . Total Damage . | . . . Kills . | . . . Allies Corrupted . | . . . Allies Melted . | . . . Intel | -11 -10 -10 ------- Run | Yrd Mat Sub Robot Analysis Total . | . . . Derelict Logs Recovered . | . . . Drone Launches . | . . . Drone Recoveries . | . . . Exploration | -11 -10 -10 ------------- Run | Yrd Mat Sub Turns Passed 9433 | 1583 961 6889 Spaces Moved 2348 | 298 382 1668 Core 38 | 6 5 27 Treads 2193 | 292 377 1524 Legs . | . . . Wheels 117 | . . 117 Hover . | . . . Flight . | . . . Fastest Speed 50 | 50 100 130 Average Speed 337 | 157 211 398 Slowest Speed 1000 | 160 240 1000 Overloaded Moves . | . . . Propulsion Burnouts . | . . . Robots Hopped . | . . . Cave-ins Triggered . | . . . Exploration Rate (%) 64 | 48 68 78 Regions Visited 2 Branch Regions 1 Pre-discovered Areas . | . . . Known Exits Taken . | . . . Unknown Exits Taken 2 | 1 1 . Scrap Searched 7 | . . 7 Spaces Dug 3 | . . 3 Terrain Destroyed 10 | . 3 7 Melee 2 | . . 2 Projectile 5 | . . 5 AOE 3 | . 3 . Terrain Rammed . | . . . Walls Destroyed . | . . . Machines Disabled . | . . . Actions | -11 -10 -10 --------- Run | Yrd Mat Sub Total 3664 | 1411 452 1801 Wait 1114 | 1101 2 11 Move 2346 | 297 381 1668 Hop . | . . . Pick Up 45 | 7 12 26 Fast Attach . | . . . Attach 22 | 6 7 9 Detach . | . . . Swap 15 | . 4 11 Drop 16 | . 3 13 Fire 84 | . 43 41 Melee 22 | . . 22 Ram . | . . . Kick . | . . . Crush . | . . . Escape Stasis . | . . . Rewire . | . . . Trap . | . . . Miscellaneous . | . . . Route ------- -11/Scrapyard -10/Materials (discovered 5 exits: [*Mat x2] / *Min x2 / *Sub) -10/Subcaves (discovered 3 exits: [*Mat x2] / [*Rec]) History --------- Turn | Location | Event 13 | -11/Scrapyard | Discovered new exit (range 15) 1584 | -11/Scrapyard | Entered Materials 1585 | -10/Materials | Build established: Mutant 1855 | -10/Materials | Discovered new exit (range 13) 1925 | -10/Materials | Discovered new exit (range 14) 2092 | -10/Materials | Discovered new exit (range 10) 2149 | -10/Materials | Identified exit to Mines 2340 | -10/Materials | Discovered new exit (range 5) 2526 | -10/Materials | Discovered new exit (range 6) 2545 | -10/Materials | Entered Subcaves 2547 | -10/Subcaves | Shifting Twisted Machinery released Mak. System Restoration Module 2564 | -10/Subcaves | Shifting Twisted Machinery released Mak. Light Armor Plating 2848 | -10/Subcaves | Ambushed by swarm of Subdwellers 2866 | -10/Subcaves | Core integrity fell below 50% 2894 | -10/Subcaves | Lost 5 parts (2n1u2w) 3992 | -10/Subcaves | A swath of the cavern ceiling suddenly collapsed 6461 | -10/Subcaves | Visited 4L-MR0's lab 6541 | -10/Subcaves | Found Flightbrick 7517 | -10/Subcaves | Core integrity fell below 20% 7518 | -10/Subcaves | Discovered new exit (range 10) 8982 | -10/Subcaves | Discovered new exit (range 7) 9058 | -10/Subcaves | Discovered new exit (range 5) 9188 | -10/Subcaves | Disturbed a concealed Subdweller 9434 | -10/Subcaves | Destroyed by 4Q-CUF(R) with Subdweller Laser Last Messages --------------- Subatomizers dissect the Sub. Beam Cannon, destroying it. Subatomizers dissect the Disposable Heat Sink. Acquired Sub. Monowheel. Subatomizers dissect the Disposable Heat Sink. Searching scrap... Found Hvy. Battle Rifle. Found 28 Matter. Acquired 10 matter. Acquired Hvy. Battle Rifle. Dropped Hvy. Battle Rifle. Acquired Sub. Machine Gun. Dropped Sub. Machine Gun. Dropped Sub. Laser. Acquired 10 matter. Searching scrap... Found Mak. Light Armor Plating. Found 12 Matter. Acquired Mak. Light Armor Plating. Map ----- +----------------------------------------------------+ | | | | | | | | | ?????????????????????????????????????????????????? | | ?????????????????????????????????????????????????? | | ?????????????????????????????????????????????????? | | ?????????????????????????????????????????????????? | | ?????????????????????????????????????????????????? | | ?????????????????????????????????????????????????? | | ?????????????????????????????????????????????????? | | ?????????????????????????????????????????????????? | | ???????????????????????????????##????????????????? | | ????????????????????????????????"????????????????? | | ???????????????????????????????? ##??????????????? | | ???????????????????????????????? ##?????????????? | | ????????????????????????????????# "?##???????????? | | ???????????????????????????????## ## #???????????? | | ??????????????????????????????##" " #??????#####? | | ????????????????#####??????#### ##?##### # ## | | ????????????????# #???### ## ### | | ??????????? ?????# #### #?# | | ??????????? ## ##?## < ### | | ?????????? # # ####### ##?## | | ?????????? #### ## ### ###?# | | ?????????????# @##### #### | | ?????????????# ##??# ## | | ????????????# #????## ## ## | | ???????????# ??????########### ## # | | ???????????# ?????????????????## ### # | | ???????????? R ???????????????????# ### # | | ???????????? % % % ????????####?####???# ## # | | ???????????? ???????##" ###"$###?# | | ????????????? ????????# "#"& "### | | ????????????? ### ?????????#% "#%& "## ## | | ?????????????????#??????????##" #&[ ###" ###### | | ?????????????????????????????## # #" ##?## | | ??????????????????????????????##### # ### | | ????????????????????????????### $# # | | ????????????????????????????#" ### # #" < | | ????????????????????????????#" $# ## ## | | ????????????????????????????# ! # | | ????????????????????????????# %# ![ ^## ## | | ????????????????????????????#[ &&&&%[[ "## ### | | ????????????????????????????#%!%&%&%[%"### ###? | | ????????????????????????????##%""###""### #??? | | ?????????????????????????????#####?####?# #??? # | | ????????????????????????????????????????# #???#? | | ????????????????????????????????????????# #????? | | ???????????????????????????????????????## #????? | +----------------------------------------------------+ Best States ------------- Heat Dissipation 25 Energy Generation 15 Energy Capacity 250 Matter Stores 300 Matter Capacity 300 Sight Range 16 Terrain Scan Density 10 Armor Coverage 100 Evasion (%) 50 Recoil Reduction 2 Item Schematics ----------------- None Robot Schematics ------------------ None Fabricated ------------ Nothing Alien Tech Used ----------------- None Achievements -------------- Use The Force Challenges ------------ None Game ------ Seed SwordProcessingBoregun Manual? 0 Play Time 00:29:15 Cumulative 5.1 hours Start 2024.07.05 @ 09:26:01 End 2024.07.05 @ 09:54:09 Sessions 1 Manual Loads 0 Difficulty Rogue Special Mode None Game No. 12 Rogue 6 Adventurer 6 Explorer 0 Win Type - Total 0 Types 0/0/0/0/0/0/0/0/0 Lore% 7 Gallery% 11 Achievement% 10 Wizard Run 0 Options --------- Layout 1 ASCII 0 Keyboard 0 Movement Mouse Keybinds 0 Fullscreen 1 Font 32/SmallcapsGlow Map View 50x35 Zoom Use 0% Tactical HUD 0 Map Filters NONE Filters NONE Steam 1 RUN: a504acd1-41ea-49e4-a5b6-8806860d4b65